bitfinex/quotes_BTCUSD_20251114
["timestamp","ask_amount","ask_price","bid_price","bid_amount"]
[1763126463481,0.53013112,95001.0,95000.0,9.29070301]
[1763126463686,0.49298122,95001.0,95000.0,9.29070301]
[1763126463891,0.48798122,95001.0,95000.0,9.29070301]
[1763126464122,0.5084978,95001.0,95000.0,9.29070301]
[1763126464334,0.54562778,95001.0,95000.0,9.29070301]
[1763126464551,0.48798122,95001.0,95000.0,9.29070301]
[1763126464776,0.48798122,95001.0,95000.0,9.28041495]
[1763126464984,0.54666944,95001.0,95000.0,9.24876561]
[1763126465192,0.48798122,95001.0,95000.0,9.21711627]
[1763126465407,0.48398122,95001.0,95000.0,9.18546693]
[1763126465615,0.49198122,95001.0,95000.0,9.10281759]
[1763126465823,0.48898122,95001.0,95000.0,9.04716825]
[1763126466038,2.52266446,95001.0,95000.0,8.95818229]
[1763126466249,2.52166446,95001.0,95000.0,8.59453537]
[1763126466480,2.52166446,95001.0,95000.0,8.56288603]
[1763126466703,2.55700807,95001.0,95000.0,8.49958735]
[1763126466911,2.55100807,95001.0,95000.0,8.46793801]
[1763126467110,0.48798122,95001.0,95000.0,8.46793801]
[1763126467315,0.49498122,95001.0,95000.0,8.46793801]
[1763126467523,2.53902474,95001.0,95000.0,8.42362433]
[1763126467743,2.56836835,95001.0,95000.0,8.39196889]
[1763126467958,0.51250123,95001.0,95000.0,8.36031345]
[1763126468381,2.51250123,95001.0,95000.0,8.30465801]
[1763126468589,2.50550123,95001.0,95000.0,8.27300257]
[1763126468802,0.50050123,95001.0,95000.0,8.27300257]
[1763126469029,0.50550123,95001.0,95000.0,8.27300257]
[1763126469454,2.50650123,95001.0,95000.0,8.15586326]
[1763126469662,0.36641874,94999.0,94980.0,0.0004]
[1763126469872,0.36707874,94997.0,94996.0,0.00033645]
[1763126470088,0.41860122,94997.0,94996.0,0.00033645]
[1763126470295,0.20999999,94990.0,94980.0,0.0004]
[1763126470538,0.04968,94981.0,94980.0,0.00053633]
[1763126470756,0.36641874,94978.0,94962.0,0.00025]
[1763126470982,0.04413874,94968.0,94967.0,0.00050605]
[1763126471219,0.08510356,94968.0,94967.0,0.00050605]
[1763126471655,0.40810356,94968.0,94967.0,0.00050605]
[1763126471876,0.41866122,94968.0,94967.0,0.00050605]
[1763126472327,0.41866122,94968.0,94962.0,0.00025]
[1763126472328,0.36641874,94967.0,94962.0,0.00025]
[1763126472542,0.09381874,94963.0,94962.0,0.00038673]
[1763126472770,0.45778356,94963.0,94962.0,0.00038673]
[1763126473033,0.46834122,94963.0,94962.0,0.00038673]
[1763126473457,0.36641874,94957.0,94953.0,0.00489655]
[1763126473700,0.36641874,94939.0,94900.0,0.0004]
[1763126473918,0.0005,94929.0,94900.0,0.0004]
[1763126474176,0.87303128,94929.0,94900.0,0.0004]
[1763126474404,0.83969122,94929.0,94900.0,0.0004]
[1763126474646,0.04341874,94919.0,94900.0,0.0004]
[1763126474857,0.05017,94911.0,94900.0,0.0004]
[1763126475074,0.44576991,94911.0,94900.0,0.0004]
[1763126475306,0.47986456,94911.0,94900.0,0.0004]
[1763126475532,0.48035456,94911.0,94900.0,0.0004]
[1763126475762,0.46860122,94911.0,94900.0,0.0004]
[1763126475978,0.41794122,94911.0,94900.0,0.0004]
[1763126476411,0.42509122,94911.0,94900.0,0.0004]
[1763126476670,0.88345585,94911.0,94900.0,0.0004]
[1763126476885,0.47777248,94911.0,94910.0,0.09333357]
[1763126477334,0.03718117,94911.0,94910.0,0.09333357]
[1763126477554,0.03718117,94911.0,94910.0,0.30405952]
[1763126477775,0.03418117,94911.0,94910.0,0.09333357]
[1763126478019,0.03218117,94911.0,94910.0,0.09333357]
[1763126478266,0.02918117,94911.0,94910.0,0.09333357]
[1763126478477,0.03318117,94911.0,94910.0,0.02933357]
[1763126478921,0.02918117,94911.0,94910.0,0.02933357]
[1763126479131,0.02147614,94911.0,94910.0,0.02933357]
[1763126479351,0.03116043,94911.0,94910.0,0.02933357]
[1763126479577,0.01,94930.0,94919.0,0.11323]
[1763126479788,0.01178365,94956.0,94946.0,0.02474]
[1763126480000,0.00968723,94955.0,94946.0,0.02474]
[1763126480207,0.01192006,94956.0,94947.0,0.09031]
[1763126480208,0.02147088,94954.0,94947.0,0.09031]
[1763126480420,0.00968723,94953.0,94947.0,0.09031]
[1763126480629,0.01178365,94952.0,94947.0,0.09031]
[1763126480839,0.00968723,94951.0,94947.0,0.09031]
[1763126481051,0.01178365,94950.0,94947.0,0.09031]
[1763126481268,0.00968723,94949.0,94947.0,0.09031]
[1763126481491,0.00013641,94956.0,94947.0,0.09031]
[1763126481492,0.01178365,94991.0,94960.0,0.01053074]
[1763126481702,0.01178365,94991.0,94980.0,0.04909]
[1763126481703,0.00970737,94990.0,94980.0,0.04909]
[1763126481932,0.00970737,94989.0,94980.0,0.04909]
[1763126482157,0.00970737,94988.0,94983.0,0.21056242]
[1763126482405,0.00971319,94987.0,94985.0,0.21055956]
[1763126482603,0.00045605,94991.0,94990.0,0.32377847]
[1763126482814,0.02236293,94999.0,94998.0,0.21053074]
[1763126483071,11.56186511,95000.0,94999.0,0.06414]
[1763126483282,11.56186511,95000.0,94999.0,0.09031]
[1763126483283,11.57171526,95000.0,94999.0,0.09031]
[1763126483923,11.56200187,95000.0,94999.0,0.09031]
[1763126484348,11.56200187,95000.0,94999.0,0.13372874]
[1763126484569,11.56200187,95000.0,94999.0,0.45672874]
[1763126484570,11.52039669,95000.0,94999.0,0.45672874]
[1763126484793,10.95259822,95000.0,94999.0,0.36641874]
[1763126485039,10.09213945,95000.0,94999.0,0.39147732]
[1763126485252,9.52144072,95000.0,94999.0,0.39147732]
[1763126485477,9.52144072,95000.0,94999.0,0.43337977]
[1763126485478,9.15733504,95000.0,94999.0,0.43337977]
[1763126485710,8.88248191,95000.0,94999.0,2.43337977]
[1763126485945,8.61991812,95000.0,94999.0,2.41223674]
[1763126486191,8.25997176,95000.0,94999.0,2.368818]
[1763126486413,8.10954807,95000.0,94999.0,0.325]
[1763126486627,8.07791844,95000.0,94999.0,0.325]
[1763126486853,8.04628881,95000.0,94999.0,0.325]
[1763126487082,7.5189718,95000.0,94999.0,0.325]
[1763126487304,6.90522983,95000.0,94999.0,2.45093957]
[1763126487528,6.17726706,95000.0,94999.0,2.47169899]
[1763126487745,5.90328623,95000.0,94999.0,2.46887837]
[1763126487964,5.87167026,95000.0,94999.0,2.34375942]
[1763126488179,5.63481389,95000.0,94999.0,2.36841874]
[1763126488404,5.36354028,95000.0,94999.0,2.36841874]
[1763126488613,5.05492552,95000.0,94999.0,2.36841874]
[1763126488847,4.77866753,95000.0,94999.0,2.36841874]
[1763126489064,4.65966109,95000.0,94999.0,2.49435831]
[1763126489266,4.28235839,95000.0,94999.0,2.47121528]
[1763126489536,4.00032987,95000.0,94999.0,2.47121528]
[1763126489774,3.78294709,95000.0,94999.0,2.47221528]
[1763126489980,3.49988299,95000.0,94999.0,2.47221528]
[1763126490195,3.23911255,95000.0,94999.0,2.47221528]
[1763126490407,2.91211632,95000.0,94999.0,2.47221528]
[1763126490636,0.34973309,95100.0,95051.0,0.04341874]
[1763126490637,0.10479654,95076.0,95051.0,0.04341874]
[1763126490847,0.10493335,95076.0,95075.0,0.53336024]
[1763126491077,0.00013681,95076.0,95075.0,0.53336024]
[1763126491294,0.00013681,95076.0,95075.0,0.57677898]
[1763126491950,0.00313681,95076.0,95075.0,0.53336024]
[1763126492165,0.00213681,95076.0,95075.0,0.53336024]
[1763126492400,0.00013681,95076.0,95075.0,0.53336024]
[1763126493229,0.00013681,95076.0,95075.0,0.13236024]
[1763126494551,0.00013681,95076.0,95075.0,0.17577898]
[1763126496729,0.00013681,95076.0,95075.0,0.13236024]
[1763126498039,0.00013681,95076.0,95066.0,0.34953309]
[1763126498253,0.10479654,95067.0,95050.0,0.34953309]
[1763126498481,0.10479654,95051.0,95050.0,0.21041557]
[1763126498705,0.10479654,95051.0,95047.0,0.21042031]
[1763126498911,0.10479654,95051.0,95049.0,0.21041624]
[1763126499145,0.10479654,95051.0,95030.0,0.01052299]
[1763126499363,0.10479654,95031.0,95030.0,0.01052299]
[1763126500488,0.10493325,95031.0,95029.0,0.15698063]
[1763126501615,0.10593325,95031.0,95029.0,0.15698063]
[1763126501835,0.10593325,95031.0,95030.0,0.01058299]
[1763126502071,0.11552658,95031.0,95030.0,6e-05]
[1763126502280,0.11552658,95031.0,95021.0,6e-05]
[1763126502281,0.11652658,95031.0,95021.0,6e-05]
[1763126502488,0.10593325,95031.0,95030.0,6e-05]
[1763126502724,0.10593325,95031.0,95030.0,0.21051985]
[1763126502933,0.10593325,95031.0,95030.0,6e-05]
[1763126503395,0.10593325,95031.0,94980.0,0.36953307]
[1763126503396,0.323,95030.0,95009.0,6e-05]
[1763126503594,0.10479654,95010.0,95009.0,0.21050429]
[1763126504235,0.10479654,95010.0,95005.0,0.2105136]
[1763126504236,0.10479654,95010.0,95007.0,0.21051021]
[1763126504448,0.10479654,95010.0,95009.0,0.00012]
[1763126504649,0.10479654,95010.0,95009.0,6e-05]
[1763126504852,0.10479654,95010.0,95008.0,0.21050826]
[1763126505074,0.11527619,95010.0,94997.0,0.2105312]
[1763126505315,0.11627619,95010.0,94980.0,0.33352853]
[1763126505558,0.11827619,95010.0,95000.0,0.21052631]
[1763126505772,0.10679654,95010.0,95009.0,6e-05]
[1763126505986,0.10779654,95010.0,95009.0,6e-05]
[1763126506209,0.10679654,95010.0,95009.0,0.21050637]
[1763126506642,0.10493325,95031.0,95030.0,0.21045985]
[1763126506856,0.10493325,95031.0,95030.0,0.21051985]
[1763126507063,0.11542658,95031.0,95030.0,0.21051985]
[1763126507269,0.10493325,95031.0,95027.0,0.21046494]
[1763126507480,0.10493325,95031.0,95030.0,0.16045985]
[1763126507913,0.10693325,95031.0,95030.0,0.16045985]
[1763126508117,0.10693325,95031.0,95030.0,0.18150583]
[1763126508328,0.00358671,95031.0,95030.0,0.50450583]
[1763126508540,0.58609542,95080.0,95030.0,0.50450583]
[1763126508541,0.58609542,95080.0,95050.0,0.21041557]
[1763126508751,0.58609542,95090.0,95066.0,0.21038015]
[1763126508952,0.58609542,95090.0,95066.0,0.21044015]
[1763126508953,0.10493322,95067.0,95066.0,0.21044015]
[1763126509155,0.10493322,95067.0,95066.0,0.21038015]
[1763126511123,0.10693322,95067.0,95066.0,0.21038015]
[1763126511746,0.10493322,95067.0,95066.0,0.53338015]
[1763126511920,0.10593322,95067.0,95066.0,0.53338015]
[1763126512774,0.00113668,95067.0,95066.0,0.57679889]
[1763126513297,0.00013668,95067.0,95066.0,0.57679889]
[1763126513492,0.00013668,95067.0,95066.0,0.53338015]
[1763126513723,0.00113668,95067.0,95066.0,0.53338015]
[1763126514055,0.00013668,95067.0,95066.0,0.53338015]
[1763126514665,0.00013668,95067.0,95066.0,0.45538015]
[1763126514865,0.00013668,95067.0,95066.0,0.13238015]
[1763126515894,0.00013668,95067.0,95064.0,6e-05]
[1763126516094,0.10479654,95065.0,95063.0,0.21038567]
[1763126516300,0.0318395,95064.0,95063.0,0.21038679]
[1763126516574,0.01940562,95064.0,95063.0,0.21038679]
[1763126517620,0.02040562,95064.0,95063.0,0.21038679]
[1763126517836,0.001,95064.0,95063.0,0.21038679]
[1763126518241,0.01941566,95064.0,95063.0,0.21038679]
[1763126518445,0.02041566,95064.0,95063.0,0.21038679]
[1763126518653,0.02141566,95064.0,95063.0,0.21038679]
[1763126518854,0.02041566,95064.0,95063.0,0.21038679]
[1763126519710,0.01941566,95064.0,95063.0,0.21038679]
[1763126519922,0.01941566,95064.0,95061.0,0.21038914]
[1763126520142,0.01941566,95063.0,95040.0,0.01052188]
[1763126520393,0.10479654,95045.0,95044.0,0.21042885]
[1763126520592,0.1242122,95045.0,95044.0,0.21042885]
[1763126521046,0.10479654,95065.0,95063.0,0.21038679]
[1763126521047,0.001,95064.0,95063.0,0.21038679]
[1763126521256,0.02041075,95064.0,95063.0,0.21038679]
[1763126521466,0.10479654,95065.0,95063.0,0.21038679]
[1763126521695,0.01999998,95080.0,95066.0,0.21038015]
[1763126521910,0.01999998,95090.0,95066.0,0.21038015]
[1763126522136,0.01999998,95090.0,95066.0,0.14438015]
[1763126522355,0.0002,95100.0,95089.0,0.21032927]
[1763126522553,0.00065552,95100.0,95099.0,0.21030715]
[1763126522970,0.02007765,95100.0,95099.0,0.21030715]
[1763126524162,0.02106239,95100.0,95099.0,0.21030715]
[1763126524396,0.00165552,95100.0,95099.0,0.21030715]
[1763126524592,0.0206555,95100.0,95090.0,0.58609542]
[1763126524990,0.10479654,95094.0,95092.0,0.21032263]
[1763126525211,0.0216555,95100.0,95092.0,0.21032263]
[1763126525212,0.00165552,95100.0,95099.0,0.21030715]
[1763126526271,0.00065552,95100.0,95099.0,0.21030715]
[1763126526482,0.00165552,95100.0,95099.0,0.21030715]
[1763126527102,0.00065552,95100.0,95099.0,0.21030715]
[1763126527325,0.00165552,95100.0,95099.0,0.21030715]
[1763126527952,0.00065552,95100.0,95099.0,0.21030715]
[1763126528177,0.04065552,95100.0,95098.0,0.210308]
[1763126528378,0.10479654,95099.0,95098.0,0.210308]
[1763126528796,0.10479654,95099.0,95070.0,0.43126005]
[1763126529003,0.10479654,95071.0,95070.0,0.01051856]
[1763126529211,0.11934175,95099.0,95089.0,0.21032927]
[1763126529418,0.10479654,95099.0,95098.0,0.21030936]
[1763126529628,0.12417569,95099.0,95098.0,0.21030936]
[1763126529866,0.12417569,95099.0,95098.0,0.13230936]
[1763126530285,0.323,95098.0,95097.0,0.21031157]
[1763126530489,0.10725206,95099.0,95097.0,0.21031157]
[1763126531115,0.10725206,95099.0,95086.0,0.31550331]
[1763126531116,0.02999997,95090.0,95070.0,0.01051856]
[1763126531332,0.10479654,95071.0,95070.0,0.01051856]
[1763126531543,0.10479654,95071.0,95070.0,0.22088765]
[1763126531973,0.10479654,95071.0,95069.0,0.21037167]
[1763126532178,0.01047965,95070.0,95069.0,0.21037167]
[1763126532400,0.03939767,95070.0,95068.0,0.21037398]
[1763126532627,0.10479654,95071.0,95070.0,0.2103713]
[1763126533133,0.12419499,95071.0,95070.0,0.2103713]
[1763126533358,0.01939845,95071.0,95070.0,0.2103713]
[1763126533583,0.10479654,95079.0,95078.0,0.2103536]
[1763126534052,0.10479654,95079.0,95062.0,0.323]
[1763126534053,0.10479654,95099.0,95098.0,0.21030936]
[1763126534290,0.12466561,95099.0,95098.0,0.21030936]
[1763126535828,0.44766561,95099.0,95098.0,0.21030936]
[1763126536063,0.44866561,95099.0,95098.0,0.21030936]
[1763126536274,0.44966561,95099.0,95098.0,0.21030936]
[1763126536705,0.01999998,95090.0,95060.0,0.59661509]
[1763126536934,0.323,95098.0,95097.0,0.21031157]
[1763126537146,0.34249863,95098.0,95096.0,0.15231228]
[1763126537367,0.02924762,95097.0,95096.0,0.15231228]
[1763126538419,0.02924762,95097.0,95095.0,0.21031367]
[1763126538420,0.02924762,95097.0,95043.0,0.04341874]
[1763126538625,0.10625206,95099.0,95098.0,0.21030936]
[1763126538828,0.13554378,95099.0,95094.0,0.21031703]
[1763126539033,0.02929172,95098.0,95096.0,0.21031324]
[1763126539237,0.03029172,95097.0,95096.0,0.21031324]
[1763126539449,0.03129172,95097.0,95095.0,0.2103142]
[1763126539705,0.01999998,95090.0,95089.0,0.21032927]
[1763126539920,0.03952756,95090.0,95089.0,0.21032927]
[1763126540124,0.01952758,95090.0,95089.0,0.19455927]
[1763126540330,0.01953869,95096.0,95095.0,0.21031599]
[1763126540535,0.01953914,95098.0,95097.0,0.21031123]
[1763126540774,0.02930832,95098.0,95097.0,0.21031123]
[1763126540982,0.02930832,95098.0,95079.0,0.31552494]
[1763126540983,0.01999998,95090.0,95061.0,0.42078003]
[1763126541226,0.01999998,95090.0,95089.0,0.21032927]
[1763126541444,0.10725206,95099.0,95097.0,0.21031005]
[1763126541650,0.02930203,95098.0,95097.0,0.21031005]
[1763126542484,0.02930203,95098.0,95060.0,0.09112767]
[1763126542686,0.10479654,95080.0,95079.0,0.21035139]
[1763126543096,0.10479654,95080.0,95078.0,0.21035257]
[1763126543097,0.01954165,95080.0,95078.0,0.21035257]
[1763126543297,0.02099998,95090.0,95078.0,0.21035257]
[1763126543298,0.10479654,95079.0,95078.0,0.21035257]
[1763126543716,0.12434414,95079.0,95078.0,0.21035257]
[1763126543896,0.13677855,95079.0,95078.0,0.2103536]
[1763126544137,0.12434414,95079.0,95078.0,0.2103536]
[1763126544340,0.12434414,95079.0,95078.0,0.1323536]
[1763126545367,0.10479654,95079.0,95078.0,0.1323536]
[1763126545780,0.12436267,95079.0,95078.0,0.1323536]
[1763126545950,0.10479654,95079.0,95078.0,0.1323536]
[1763126546187,0.323,95098.0,95094.0,0.21031639]
[1763126546391,0.02999997,95090.0,95041.0,1.05217469]
[1763126546594,0.01958766,95089.0,95076.0,0.21035619]
[1763126546766,0.10479654,95071.0,95070.0,0.22088986]
[1763126548143,0.10479654,95071.0,95070.0,0.2103713]
[1763126548353,0.12438413,95071.0,95070.0,0.2103713]
[1763126549142,0.10479654,95071.0,95070.0,0.2103713]
[1763126549352,0.01999998,95090.0,95060.0,0.59661509]
[1763126549562,0.10479654,95069.0,95060.0,0.01051967]
[1763126549796,0.10479654,95069.0,95068.0,0.21037573]
[1763126550213,0.12438994,95069.0,95068.0,0.21037573]
[1763126550886,0.12438994,95069.0,95040.0,0.01052188]
[1763126550887,0.13682893,95069.0,95040.0,0.01052188]
[1763126551101,0.10479654,95054.0,95040.0,0.01065856]
[1763126551285,0.10479654,95054.0,95053.0,0.21040892]
[1763126551546,0.12438132,95054.0,95053.0,0.21040892]
[1763126551761,0.12438132,95054.0,95052.0,0.21041088]
[1763126551977,0.12438132,95054.0,95040.0,0.01065856]
[1763126551978,0.00999999,95050.0,95040.0,0.01065856]
[1763126552211,0.01958478,95049.0,95048.0,0.21041966]
[1763126552423,0.10479654,95054.0,95052.0,0.21041114]
[1763126552646,0.01958021,95053.0,95052.0,0.21041114]
[1763126552868,0.01958021,95053.0,95051.0,0.21041317]
[1763126553082,0.01958021,95052.0,95051.0,0.21041317]
[1763126553287,0.10579654,95054.0,95053.0,0.21040892]
[1763126553492,0.10479654,95054.0,95053.0,0.21040892]
[1763126553896,0.10479654,95054.0,95049.0,0.2104165]
[1763126554024,0.10479654,95054.0,95053.0,0.21040892]
[1763126555822,0.10579654,95054.0,95053.0,0.21040892]
[1763126556033,0.10579654,95054.0,95049.0,0.21041778]
[1763126556034,0.01999998,95050.0,95049.0,0.21041778]
[1763126556233,0.01,95050.0,95048.0,0.21041951]
[1763126556476,0.10479654,95054.0,95053.0,0.21040892]
[1763126556685,0.10579654,95054.0,95053.0,0.21040892]
[1763126557062,0.10579654,95054.0,95052.0,0.21040948]
[1763126557266,0.01999999,95050.0,95048.0,0.21041955]
[1763126557576,0.01999999,95050.0,95049.0,0.21041778]
[1763126558153,0.01999999,95050.0,95048.0,0.2104192]
[1763126558393,0.02099999,95050.0,95048.0,0.2104192]
[1763126558596,0.02099999,95050.0,95046.0,0.21041975]
[1763126558597,0.04099997,95050.0,95002.0,0.323]
[1763126558828,0.01999998,95040.0,95039.0,0.21043992]
[1763126559007,0.01999998,95040.0,95023.0,0.01133825]
[1763126559008,0.001,95050.0,95049.0,0.21041778]
[1763126559611,0.002,95050.0,95049.0,0.21041778]
[1763126559823,0.42779654,95054.0,95053.0,0.21040892]
[1763126560009,0.42779654,95054.0,95043.0,0.21042961]
[1763126560010,0.01999998,95050.0,95043.0,0.21042961]
[1763126560215,0.01999998,95050.0,95049.0,0.21041778]
[1763126560478,0.01999998,95050.0,95024.0,0.42094211]
[1763126560479,0.01999998,95040.0,95039.0,0.21043992]
[1763126560690,0.00999999,95050.0,95010.0,0.58609542]
[1763126560691,0.02999997,95030.0,95010.0,0.0105252]
[1763126560899,0.323,95029.0,95010.0,0.01066191]
[1763126561107,0.03999997,95020.0,95010.0,0.00013671]
[1763126561340,0.323,95019.0,95010.0,0.00013671]
[1763126561786,0.10479654,95011.0,95010.0,0.00013671]
[1763126562225,0.10479654,95011.0,95010.0,0.21064086]
[1763126563152,0.10479654,95011.0,95010.0,0.00013671]
[1763126563398,0.11527619,95011.0,95010.0,0.00013671]
[1763126563591,0.48169493,95011.0,95010.0,0.00013671]
[1763126563813,0.49145264,95011.0,95010.0,0.00013671]
[1763126564023,0.49245264,95011.0,95010.0,0.00013671]
[1763126564287,0.42879654,95011.0,95010.0,0.00013671]
[1763126564975,0.47221528,95011.0,95010.0,0.00013671]
[1763126565401,0.49171324,95011.0,95010.0,0.00013671]
[1763126565619,0.49371324,95011.0,95010.0,0.00013671]
[1763126565863,0.10479654,94996.0,94970.0,0.0004]
[1763126566070,0.36641874,94979.0,94970.0,0.00085605]
[1763126566286,0.04341874,94977.0,94970.0,0.00085605]
[1763126566487,0.03999997,94970.0,94951.0,0.02106349]
[1763126566706,0.00999999,94970.0,94968.0,0.21059559]
[1763126567693,0.01999998,94960.0,94951.0,0.00013676]
[1763126567873,0.10479654,94952.0,94951.0,0.2107695]
[1763126568289,0.10479654,94952.0,94951.0,0.00013676]
[1763126568290,0.15869493,94952.0,94951.0,0.00013676]
[1763126568466,0.48169493,94952.0,94951.0,0.00013676]
[1763126569507,0.48269493,94952.0,94951.0,0.00013676]
[1763126569959,0.48169493,94952.0,94951.0,0.00013676]
[1763126570168,0.42979654,94952.0,94951.0,0.21077171]
[1763126571013,0.00999999,94950.0,94931.0,0.21067933]
[1763126571260,0.10479654,94932.0,94931.0,0.21081574]
[1763126571695,0.10479654,94932.0,94931.0,0.00013641]
[1763126571696,0.11527619,94932.0,94931.0,0.00013641]
[1763126571905,0.42779654,94932.0,94931.0,0.00013641]
[1763126572548,0.42779654,94932.0,94910.0,0.03986986]
[1763126572549,0.323,94931.0,94910.0,0.02933357]
[1763126572759,0.03999997,94920.0,94918.0,0.21070658]
[1763126572972,0.04341874,94928.0,94915.0,0.21071391]
[1763126573178,0.01,94920.0,94919.0,0.21070597]
[1763126573391,0.03999997,94920.0,94910.0,0.02933357]
[1763126573599,0.03999997,94920.0,94910.0,0.24005952]
[1763126573600,0.10479654,94911.0,94910.0,0.24005952]
[1763126573820,0.01,94910.0,94907.0,0.21073063]
[1763126574041,0.01,94910.0,94909.0,0.21072817]
[1763126574470,0.10479654,94911.0,94909.0,0.21072817]
[1763126574676,0.10479654,94911.0,94910.0,0.02107259]
[1763126574878,0.10579654,94911.0,94909.0,0.21072817]
[1763126575311,0.10479654,94911.0,94909.0,0.21072817]
[1763126575534,0.002,94920.0,94919.0,0.21070597]
[1763126575756,0.02999997,94940.0,94931.0,0.21067933]
[1763126576772,0.10679654,94932.0,94931.0,0.21067933]
[1763126578105,0.10479654,94932.0,94931.0,0.21067933]
[1763126578305,0.10479654,94932.0,94931.0,0.53367933]
[1763126578509,0.10679654,94932.0,94931.0,0.53367933]
[1763126579043,0.10479654,94932.0,94931.0,0.53367933]
[1763126580764,0.11527619,94932.0,94931.0,0.21067933]
[1763126580965,0.11527619,94932.0,94923.0,0.21069567]
[1763126580966,0.01,94930.0,94923.0,0.21069567]
[1763126581164,0.01,94930.0,94910.0,0.01053629]
[1763126581165,0.10479654,94911.0,94910.0,0.22126224]
[1763126581424,0.10479654,94911.0,94907.0,0.00013687]
[1763126581598,0.01,94910.0,94909.0,0.21072817]
[1763126581816,0.10479654,94911.0,94909.0,0.21072817]
[1763126582018,0.01,94910.0,94907.0,0.00013687]
[1763126582221,0.01,94910.0,94909.0,0.21072817]
[1763126582708,0.01,94910.0,94907.0,0.00013687]
[1763126582918,0.01,94910.0,94908.0,0.2107287]
[1763126583378,0.01,94910.0,94901.0,0.21074437]
[1763126583379,0.05499839,94909.0,94900.0,0.0004]
[1763126583612,0.05499839,94909.0,94888.0,99.995]
[1763126583616,0.04341874,94899.0,94888.0,99.995]
[1763126583782,0.04341874,94897.0,94888.0,99.73414148]
[1763126584042,0.04341874,94895.0,94888.0,99.5507897]
[1763126584266,0.04341874,94895.0,94888.0,99.22814953]
[1763126584267,0.04341874,94893.0,94888.0,99.22814953]
[1763126584478,0.04341874,94891.0,94888.0,98.22946661]
[1763126584690,0.34232638,94892.0,94888.0,98.22946661]
[1763126584691,0.10451874,94889.0,94888.0,98.22946661]
[1763126584854,0.06274512,94889.0,94888.0,98.22946661]
[1763126585390,0.38574512,94889.0,94888.0,98.22946661]
[1763126585828,0.44684512,94889.0,94888.0,98.22946661]
[1763126586029,0.49182963,94889.0,94888.0,98.12946661]
[1763126586220,0.50148656,94889.0,94888.0,97.91176291]
[1763126586360,0.5349131,94889.0,94888.0,97.91176291]
[1763126586593,0.5379131,94889.0,94888.0,97.91176291]
[1763126586822,0.5379131,94889.0,94888.0,96.51187699]
[1763126586823,0.57141681,94889.0,94888.0,96.51187699]
[1763126587042,0.5379131,94889.0,94888.0,96.51187699]
[1763126587698,0.5379131,94889.0,94888.0,96.30471727]
[1763126587699,0.49192859,94889.0,94888.0,96.30471727]
[1763126587947,0.49192859,94889.0,94888.0,96.27304458]
[1763126587948,0.54436032,94889.0,94888.0,96.27304458]
[1763126588174,0.54836032,94889.0,94888.0,95.90937431]
[1763126588411,2.55336032,94889.0,94888.0,95.87770162]
[1763126588646,2.54936032,94889.0,94888.0,95.81431982]
[1763126588884,2.57753318,94889.0,94888.0,95.78262892]
[1763126589104,2.58253318,94889.0,94888.0,95.41894044]
[1763126589324,2.57653318,94889.0,94888.0,95.30824954]
[1763126589539,2.57653318,94889.0,94888.0,94.89121864]
[1763126589748,2.57653318,94889.0,94888.0,94.85952774]
[1763126589749,0.59307291,94889.0,94888.0,94.85952774]
[1763126589971,2.60007291,94889.0,94888.0,94.49583926]
[1763126590183,2.60007291,94889.0,94888.0,94.46414836]
[1763126590429,0.55665417,94889.0,94888.0,94.25042084]
[1763126590656,0.47443787,94889.0,94888.0,94.25042084]
[1763126590874,0.11801133,94889.0,94888.0,94.25042084]
[1763126591073,0.15249661,94889.0,94888.0,94.25042084]
[1763126591277,0.09608331,94889.0,94888.0,94.25030676]
[1763126591485,0.08042638,94889.0,94888.0,94.25030676]
[1763126591695,0.08742638,94889.0,94888.0,94.25030676]
[1763126591906,0.09242638,94889.0,94888.0,94.25030676]
[1763126592124,0.08042638,94889.0,94888.0,94.25030676]
[1763126592597,0.08242638,94889.0,94888.0,94.25030676]
[1763126592802,0.02132638,94889.0,94888.0,94.25030676]
[1763126593014,0.02532638,94889.0,94888.0,94.25030676]
[1763126593247,0.02532638,94889.0,94888.0,94.46108156]
[1763126593456,0.02532638,94889.0,94888.0,94.25030676]
[1763126593666,0.02532638,94889.0,94888.0,94.46108156]
[1763126593667,0.02530966,94889.0,94888.0,94.46108156]
[1763126593870,0.02530966,94889.0,94888.0,94.25030676]
[1763126593871,0.02330966,94889.0,94888.0,94.25030676]
[1763126594072,0.01930966,94889.0,94888.0,94.25030676]
[1763126594285,0.02230966,94889.0,94888.0,94.25030676]
[1763126594890,0.02130966,94889.0,94888.0,94.25030676]
[1763126595182,0.01930966,94889.0,94888.0,94.25030676]
[1763126595382,0.02230966,94889.0,94888.0,94.25030676]
[1763126595588,0.02430966,94889.0,94888.0,94.25030676]
[1763126595813,0.02230966,94889.0,94888.0,94.25030676]
[1763126596014,0.01930966,94889.0,94888.0,94.25030676]
[1763126596165,0.1260384,94889.0,94888.0,94.25030676]
[1763126596584,0.4490384,94889.0,94888.0,94.17130676]
[1763126596801,0.4490384,94889.0,94888.0,94.17068676]
[1763126597014,0.45870792,94889.0,94888.0,94.17068676]
[1763126597180,0.45970792,94889.0,94888.0,94.17068676]
[1763126597375,0.45770792,94889.0,94888.0,94.17068676]
[1763126597616,0.45670792,94889.0,94888.0,94.17068676]
[1763126597817,0.45870792,94889.0,94888.0,94.17068676]
[1763126598023,0.46170792,94889.0,94888.0,94.17068676]
[1763126598203,0.48071927,94889.0,94888.0,94.17068676]
[1763126598609,0.48871927,94889.0,94888.0,94.17068676]
[1763126598815,0.48471927,94889.0,94888.0,94.17068676]
[1763126599361,0.50871719,94889.0,94888.0,94.17068676]
[1763126599565,0.53877675,94889.0,94888.0,94.17068676]
[1763126599694,0.56107967,94889.0,94888.0,94.17068676]
[1763126599897,0.56108228,94889.0,94888.0,94.17068676]
[1763126600302,0.56508228,94889.0,94888.0,94.17068676]
[1763126600654,0.46170792,94889.0,94888.0,94.17068676]
[1763126600878,0.461765,94889.0,94888.0,94.17068676]
[1763126601156,0.53106198,94889.0,94888.0,94.17068676]
[1763126601329,0.50708902,94889.0,94888.0,94.17068676]
[1763126601529,0.4840911,94889.0,94888.0,94.17068676]
[1763126601756,0.4880911,94889.0,94888.0,94.17068676]
[1763126601966,0.4840911,94889.0,94888.0,94.17068676]
[1763126602159,0.43567236,94889.0,94888.0,94.17068676]
[1763126602363,0.09434626,94889.0,94888.0,94.17068676]
[1763126602594,0.24934626,94889.0,94888.0,94.17068676]
[1763126603005,0.24434626,94889.0,94888.0,94.17068676]
[1763126603623,0.24034626,94889.0,94888.0,94.13368676]
[1763126603819,0.24434626,94889.0,94888.0,94.13368676]
[1763126604251,0.16936674,94889.0,94888.0,94.13368676]
[1763126604625,0.17136674,94889.0,94888.0,94.13368676]
[1763126604840,0.16936674,94889.0,94888.0,94.13368676]
[1763126605044,0.03589674,94889.0,94888.0,94.19977676]
[1763126605248,0.02999998,94910.0,94907.0,0.20673108]
[1763126605480,0.00999999,94920.0,94907.0,0.20673108]
[1763126605736,0.01,94910.0,94907.0,0.21073188]
[1763126606145,0.00999999,94930.0,94907.0,0.21073188]